Cogmind - Beta 16 @@@ ROGUE MODE // 2026.01.03 @ 03:01:29 Player: C4PT41N Result: Destroyed by GW-4HN(j) with Overtuned Pulse Rifle Performance ------------- Evolutions (0) 0 Regions Visited (3) 600 Robots Destroyed (17) 85 Value Destroyed (506) 506 Prototype IDs (0) 0 Alien Tech Used (0) 0 Bonus (685) 685 TOTAL SCORE: 1876 Bonus ------- Registered with UFD 300 Met Optimus in HQ 500 Friendly Fire -115 Cogmind --------- Core Integrity 0/250 Matter 300/300 Energy 100/100 System Corruption 0% Temperature Cool (12) Movement Walking (120) Location -7/Scraptown Parts ------- > --- POWER (1) -------- (None) > --- PROPULSION (2) --- Carbon-fiber Leg Armored Leg > --- UTILITY (2) ------ Makeshift Light Armor Plating Layered Light Armor Plating > --- WEAPON (2) ------- Ripper > --- INVENTORY (5) ---- Titanium Leg Scrap Suit Hardened Light Armor Plating DRS Beacon (Ready) Peak State ------------ > --- POWER ------------ Makeshift Power Source > --- PROPULSION ------- Titanium Leg Armored Leg > --- UTILITY ---------- Large Storage Unit Microactuators > --- WEAPON ----------- CPS Tube Ripper > --- INVENTORY -------- Overtuned Titanium Leg Scrap Suit Melee Analysis Suite Improved Melee Analysis Suite Transmission Jammer Hardened Light Armor Plating Makeshift Light Armor Plating Layered Light Armor Plating Power Maul DRS Beacon [Rating: 28] Favorites ----------- Power Makeshift Power Source Engine Makeshift Power Source Power Core Light Nuclear Core Propulsion Improved Aluminum Leg Leg Improved Aluminum Leg Utility Improved Heat Sink Device Improved Heat Sink Storage Medium Storage Unit Protection Makeshift Light Armor Plating Weapon Autogun Energy Gun Small Laser Ballistic Gun Autogun Special Weapon CPS Tube Slashing Weapon Ripper Build | -11 -10 -10 -7 ------- Run | Yrd Mat Sub Scr Slots Evolved . | . . . . Power . | . . . . Propulsion . | . . . . Utility . | . . . . Weapon . | . . . . Parts Attached 34 | 6 12 3 13 Power 6 | 1 2 . 3 Engine 5 | 1 1 . 3 Core 1 | . 1 . . Reactor . | . . . . Propulsion 10 | 2 2 2 4 Treads . | . . . . Leg 10 | 2 2 2 4 Wheel . | . . . . Hover . | . . . . Flight . | . . . . Utility 9 | 1 4 . 4 Device 4 | . 3 . 1 Storage 3 | 1 1 . 1 Processor . | . . . . Hackware . | . . . . Protection 2 | . . . 2 Artifact . | . . . . Weapon 9 | 2 4 1 2 Energy Gun 1 | 1 . . . Energy Cannon . | . . . . Ballistic Gun 5 | 1 3 1 . Ballistic Cannon . | . . . . Launcher . | . . . . Special Weapon 2 | . 1 . 1 Impact Weapon . | . . . . Slashing Weapon 1 | . . . 1 Piercing Weapon . | . . . . Special Melee Weapon . | . . . . Unidentified Prototypes . | . . . . Parts Lost 2 | . . . 2 Power 1 | . . . 1 Propulsion . | . . . . Utility . | . . . . Weapon 1 | . . . 1 Highest Loss Streak 1 | . . . 1 To Critical Strikes . | . . . . Average Backups 8 | 2 8 8 9 Power . | . . . . Propulsion 1 | 1 3 2 1 Utility 4 | . 1 3 5 Weapon 1 | . 2 2 1 Tool/Special . | . . . . Unused Backups 15 | . 6 . 9 Power . | . . . . Propulsion 6 | . 4 . 2 Utility 7 | . 1 . 6 Weapon 2 | . 1 . 1 Tool/Special . | . . . . Average Slot Usage (%) 98 | . 97 100 99 Engine 11 | . 3 14 13 Core 2 | . 10 . . Leg 27 | . 27 28 28 Device 13 | . 12 14 13 Storage 13 | . 14 14 13 Ballistic Gun 21 | . 26 18 19 Special Weapon 3 | . . 9 3 Slashing Weapon 2 | . . . 4 Peak Build Rating 28 | 6 16 14 28 Average Rating 19 | 5 14 13 21 On Entrance 8 | . 6 14 14 Avg Prop Armor Cover (%) . | . . . . Naked Turns . | . . . . Heaviest Build 34 | 12 22 20 34 Greatest Support 33 | 20 26 26 33 Greatest Overweight (x) 1 | 1 . . 1 Average Overweight (x) . | . . . . Largest Inventory Capacity 15 | 8 10 10 15 Average Capacity 10 | 7 9 10 10 Most Carried 13 | 6 10 10 13 Average Carried 9 | 3 8 9 9 Final Capacity 10 | 8 10 10 5 Final Carried 9 | 6 9 9 5 Class Distribution -------------------- 81% | Mutant 18% | Derelict-Mutant Dominant Class ---------------- Mutant | -10/Materials Mutant | -10/Subcaves Mutant | -7/Scraptown Resources | -11 -10 -10 -7 ----------- Run | Yrd Mat Sub Scr Matter Collected 954 | 260 364 72 258 Remotely . | . . . . Salvage Created 629 | . 545 14 70 Parts 41 | . 36 3 2 Haulers Intercepted 1 | . 1 . . Recyclers Shooed . | . . . . Parts Field Recycled . | . . . . Retrieved Matter . | . . . . Parts Self-Destructed 10 | . . 10 . Prevented . | . . . . Parts Restored . | . . . . Kills | -11 -10 -10 -7 ------- Run | Yrd Mat Sub Scr Combat Hostiles Destroyed 14 | . 13 . 1 Melee 1 | . . . 1 Guns 13 | . 13 . . Classes Destroyed 6 | . 4 1 1 Hauler 1 | . 1 . . Watcher 1 | . 1 . . Swarmer 3 | . 3 . . Grunt 10 | . 10 . . Federalist 1 | . . 1 . Scrapper 1 | . . . 1 Best Kill Streak 3 | . 3 . 1 Combat Bots Only 3 | . 3 . 1 Max Kills in Single Turn 1 | . 1 1 1 Gunslinging . | . . . . Exploded . | . . . . Melee 1 | . . . 1 Uniques/NPCs Destroyed . | . . . . Combat | -11 -10 -10 -7 -------- Run | Yrd Mat Sub Scr Hostile Shots Fired 136 | . 57 44 35 Missed 43 | . 15 17 11 Hits 93 | . 42 27 24 Projectile 93 | . 42 27 24 AOE 1 | . . 1 . Critical Strikes 3 | . 1 . 2 Damage Taken 1221 | . 466 246 509 Core 254 | . 94 49 111 Absorbed by Shields . | . . . . Regen/Repaired (Parts) 106 | . 106 . . Core Remaining (%) 100 | 100 . . . Volleys Fired 54 | . 36 18 . Largest 2 | . 2 2 . Hottest 100 | . 46 100 . Shots Fired 95 | . 72 23 . Gun 89 | . 72 17 . Cannon . | . . . . Launcher . | . . . . Special 6 | . . 6 . Kinetic 89 | . 72 17 . Thermal 6 | . . 6 . Explosive . | . . . . Electromagnetic . | . . . . Robot Hit Streak 5 | . 5 4 . Robot Miss Streak 5 | . 3 5 . Penetration Max . | . . . . Secondary Targets . | . . . . Shots Hit Robots 45 | . 36 6 3 Core Hits 23 | . 21 1 1 Critical Kills . | . . . . Critical Parts Destroyed . | . . . . Critical Strikes 2 | . . . 2 Sever 2 | . . . 2 Melee Attacks 5 | . . . 5 Impact . | . . . . Slashing 5 | . . . 5 Piercing . | . . . . Sneak Attacks . | . . . . Combat Hostiles . | . . . . Follow-up Attacks . | . . . . Damage Inflicted 818 | . 626 105 87 Guns 661 | . 556 105 . Cannons . | . . . . Explosions 55 | . 55 . . Melee 87 | . . . 87 Ramming 15 | . 15 . . Kinetic 661 | . 556 105 . Thermal . | . . . . Explosive . | . . . . Electromagnetic 55 | . 55 . . Impact . | . . . . Slashing 87 | . . . 87 Piercing . | . . . . Highest Corruption . | . . . . Average Corruption . | . . . . Corruption Purged . | . . . . Corruption Blocked . | . . . . Overload Shots . | . . . . Overflow Damage . | . . . . Projectiles . | . . . . Explosions . | . . . . Melee . | . . . . Knockbacks . | . . . . Impact . | . . . . Kinetic . | . . . . Secondary . | . . . . Self-Inflicted Damage 7 | . 7 . . Shots 1 | . 1 . . Rammed . | . . . . Targets Rammed 1 | . 1 . . Kicked 1 | . 1 . . Crushed . | . . . . Highest Temperature 25 | . 20 . 25 Average Temperature 10 | . 12 . 10 Received Heat Transfer 614 | . 207 93 314 Siege Activations . | . . . . Martial Activations . | . . . . Shielding Activations . | . . . . Robots Disrupted . | . . . . Combat Hostiles . | . . . . Robots Corrupted . | . . . . Combat Hostiles . | . . . . Parts Fried . | . . . . Impact Corruptions . | . . . . Robots Melted . | . . . . Combat Hostiles . | . . . . Parts Melted 1 | . . . 1 Heat Transferred . | . . . . Parts Sabotaged . | . . . . Parts Stolen . | . . . . Parts Stripped . | . . . . Power Chain Reactions . | . . . . Alert | -11 -10 -10 -7 ------- Run | Yrd Mat Sub Scr Maximum Alert Level . | . . . . Low Security (%) 100 | 100 100 . . Level 1 . | . . . . Level 2 . | . . . . Level 3 . | . . . . Level 4 . | . . . . Level 5 . | . . . . High Security . | . . . . Max Security . | . . . . Peak Influence 157 | . 157 . . Initial . | . . . . Average 33 | . 35 . . Influence Increases 475 | . 385 90 . Destroy 0b10 Robot/C 260 | . 260 . . Destroy 0b10 Robot/NC 10 | . 10 . . Destroy Leader 64 | . 64 . . Successful Hack 6 | . 6 . . Disable Machine 45 | . 45 . . Lose Combat Pursuer 90 | . . 90 . Influence Decreases 475 | . 246 169 60 Entered New Map 127 | . . 67 60 Time Decay 348 | . 246 102 . Squads Dispatched 2 | . 2 . . Investigation 1 | . 1 . . Extermination . | . . . . Reinforcement 1 | . 1 . . Assault . | . . . . Garrison . | . . . . Intercept . | . . . . Searches Triggered . | . . . . Construction Impeded . | . . . . Haulers Reinforced . | . . . . Active Scanning Responses . | . . . . Cargo Convoy Interrupts . | . . . . Stealth | -11 -10 -10 -7 --------- Run | Yrd Mat Sub Scr Distress Signals 2 | . 2 . . Communications Jammed . | . . . . Distress Signals . | . . . . Times Spotted 41 | . 20 11 10 Peak Tracking Total 6 | . 4 6 3 Tactical Retreats 3 | . . 3 . Traps | -11 -10 -10 -7 ------- Run | Yrd Mat Sub Scr Traps Triggered . | . . . . Indirectly . | . . . . Trap Hack Attempts . | . . . . Triggered . | . . . . Disarmed . | . . . . Reprogrammed . | . . . . Reused . | . . . . Traps Extracted . | . . . . Installed . | . . . . Triggered . | . . . . Machines | -11 -10 -10 -7 ---------- Run | Yrd Mat Sub Scr Machines Disabled 4 | . 3 1 . Max in Single Turn 2 | . 2 1 . Machines Repaired . | . . . . Machines Dismantled . | . . . . Machines Sabotaged . | . . . . Overloaded Fab Kills . | . . . . Hacking | -11 -10 -10 -7 --------- Run | Yrd Mat Sub Scr Machines Accessed 10 | . 4 . 6 Terminals 2 | . 2 . . Fabricators . | . . . . Repair Stations 1 | . 1 . . Recycling Units 1 | . 1 . . Scanalyzers . | . . . . Garrison Access . | . . . . Total Hacks 57 | . 12 . 45 Successful 53 | . 8 . 45 Failed 4 | . 4 . . Catastrophic . | . . . . Database Lockouts . | . . . . Manual 3 | . 3 . . Terminals 3 | . 3 . . Fabricators . | . . . . Repair Stations 8 | . 8 . . Recycling Units 1 | . 1 . . Scanalyzers . | . . . . Garrison Access . | . . . . Terminal Hacks 46 | . 1 . 45 Record 45 | . . . 45 Zone Layout 1 | . 1 . . Fabricator Hacks . | . . . . Repair Station Hacks 6 | . 6 . . Scan Component 4 | . 4 . . Repair 2 | . 2 . . Recycling Unit Hacks 1 | . 1 . . Report Inventory 1 | . 1 . . Scanalyzer . | . . . . Garrison Access Hacks . | . . . . Unauthorized Hacks . | . . . . Terminals . | . . . . Fabricators . | . . . . Repair Stations . | . . . . Recycling Units . | . . . . Scanalyzers . | . . . . Garrison Access . | . . . . Data Cores Recovered . | . . . . Used . | . . . . Hacking Detections 1 | . 1 . . Full Trace Events 1 | . 1 . . Feedback Events . | . . . . Feedback Blocked . | . . . . Robot Schematics Acquired . | . . . . Robots Built . | . . . . Authchips . | . . . . Time . | . . . . Total Robot Build Rating . | . . . . Part Schematics Acquired . | . . . . Parts Built . | . . . . Authchips . | . . . . Time . | . . . . Total Part Build Rating . | . . . . Part Studies Acquired . | . . . . Parts Repaired 2 | . 2 . . Time 64 | . 64 . . Parts Recycled . | . . . . Recycled Matter . | . . . . Retrieved Matter . | . . . . Retrieved Components . | . . . . Parts Scanalyzed . | . . . . Part Schematics Acquired . | . . . . Parts Damaged . | . . . . Bothacking | -11 -10 -10 -7 ------------ Run | Yrd Mat Sub Scr Used RIF Installer . | . . . . Robots Hacked . | . . . . Non-combat . | . . . . Combat . | . . . . Robot Hacks Applied . | . . . . Relay Couplers Released . | . . . . Fabnet Peak Effective % . | . . . . Robots Rewired . | . . . . Allies Hacked . | . . . . Hacks Repelled . | . . . . Allies | -11 -10 -10 -7 -------- Run | Yrd Mat Sub Scr Total Allies . | . . . . Largest Group . | . . . . Highest-Rated Group . | . . . . Highest-Rated Ally . | . . . . Total Orders . | . . . . Ally Attacks . | . . . . Total Damage . | . . . . Kills . | . . . . Allies Corrupted . | . . . . Allies Melted 1 | . . . 1 Intel | -11 -10 -10 -7 ------- Run | Yrd Mat Sub Scr Active Infowar (turns) . | . . . . Robot Analysis Total . | . . . . Derelict Logs Recovered . | . . . . Drone Launches . | . . . . Drone Recoveries . | . . . . Exploration | -11 -10 -10 -7 ------------- Run | Yrd Mat Sub Scr Turns Passed 4526 | 67 1160 290 3009 Spaces Moved 3259 | 47 651 190 2371 Core 7 | 7 . . . Treads . | . . . . Legs 3252 | 40 651 190 2371 Wheels . | . . . . Hover . | . . . . Flight . | . . . . Fastest Speed 50 | 50 120 120 120 Average Speed 122 | 111 120 120 123 Slowest Speed 195 | 120 120 120 195 Overloaded Moves . | . . . . Propulsion Burnouts . | . . . . Robots Hopped . | . . . . Potential Cave-ins 2 | . . 2 . Cave-ins Triggered . | . . . . Exploration Rate (%) 38 | 4 58 9 83 Regions Visited 3 Branch Regions 2 Pre-discovered Areas . | . . . . Known Exits Taken . | . . . . Unknown Exits Taken 3 | 1 1 1 . Scrap Searched 4 | . . . 4 Spaces Dug . | . . . . Terrain Destroyed . | . . . . Melee . | . . . . Projectile . | . . . . AOE . | . . . . Terrain Rammed . | . . . . Walls Destroyed . | . . . . Machines Disabled . | . . . . Actions | -11 -10 -10 -7 --------- Run | Yrd Mat Sub Scr Total 3694 | 58 975 221 2440 Wait 264 | . 250 . 14 Move 3256 | 46 650 189 2371 Hop . | . . . . Pick Up 31 | 6 7 2 16 Fast Attach 16 | 6 6 2 2 Attach 6 | . 3 3 . Detach 6 | . 5 1 . Swap 19 | . 5 2 12 Drop 36 | . 12 4 20 Fire 54 | . 36 18 . Melee 5 | . . . 5 Ram . | . . . . Kick 1 | . 1 . . Crush . | . . . . Escape Stasis . | . . . . Rewire . | . . . . Trap . | . . . . Miscellaneous . | . . . . Route ------- -11/Scrapyard -10/Materials (discovered 4 exits: [*Mat x2] / [*Min] / [*Sub]) -10/Subcaves (discovered 4 exits: [*Mat x2] / [*Rec] / *Scr) -7/Scraptown (discovered 1 exit: [*Fac]) History --------- Turn | Location | Event 25 | -11/Scrapyard | Discovered new exit (range 15) 68 | -11/Scrapyard | Entered Materials 69 | -10/Materials | Met a group of wandering Federalists 126 | -10/Materials | Discovered new exit (range 13) 317 | -10/Materials | Build established: Mutant 627 | -10/Materials | Repaired Imp. Aluminum Leg 661 | -10/Materials | Repaired Autogun 779 | -10/Materials | Discovered new exit (range 13) 889 | -10/Materials | Discovered new exit (range 16) 1006 | -10/Materials | Discovered new exit (range 6) 1228 | -10/Materials | Entered Subcaves 1229 | -10/Subcaves | Continued accompanying wandering Federalists (5) 1244 | -10/Subcaves | Ambushed by Subdweller buried in earth 1248 | -10/Subcaves | Core integrity fell below 50% 1351 | -10/Subcaves | Discovered new exit (range 13) 1441 | -10/Subcaves | Discovered new exit (range 9) 1473 | -10/Subcaves | Wandering Federalist uncovered a shortcut to Scraptown 1497 | -10/Subcaves | Discovered new exit (range 10) 1518 | -10/Subcaves | Entered Scraptown 1876 | -7/Scraptown | Heard Great Nut preacher, LISTEN AND RECITE! 1928 | -7/Scraptown | Visited Fellowship of the Rings 1997 | -7/Scraptown | Visited UFD Registry 2013 | -7/Scraptown | Visited SPCMW 2054 | -7/Scraptown | Visited Shadow of the Wyrm 2081 | -7/Scraptown | Visited Assassins FH 2644 | -7/Scraptown | Visited Cave Peace 3048 | -7/Scraptown | Discovered new exit (range 5) 3387 | -7/Scraptown | Registered with UFD as "Cargothruster" 3438 | -7/Scraptown | Visited LU-1G1's Boring Crew 3556 | -7/Scraptown | Visited Scrap Suit Storage 3573 | -7/Scraptown | Found Scrap Suit 3662 | -7/Scraptown | Visited Derelict Rescue Squad 3677 | -7/Scraptown | Found DRS Beacon 3710 | -7/Scraptown | Visited Junk Repository 3755 | -7/Scraptown | Visited Observation Area 3873 | -7/Scraptown | Build established: Derelict-Mutant 4265 | -7/Scraptown | Met Optimus 4265 | -7/Scraptown | Accepted into 0bPrime 4349 | -7/Scraptown | Civil war broke out across Scraptown 4433 | -7/Scraptown | Lost 5 allies 4485 | -7/Scraptown | Core integrity fell below 20% 4527 | -7/Scraptown | Destroyed by GW-4HN(j) with Overtuned Pulse Rifle Last Messages --------------- 04414_ Acquired 10 matter. 04418_ Acquired Carbon-fiber Leg. 04425_ 9S-PMG(j) destroyed. 04453_ 2Y-JKV(j): "Down with Optimus!" 04465_ CP-Y56(j): "How are there so many of them? Surely our efforts have been convincing enough throughout recent cycles." 04467_ Acquired Ovr. Titanium Leg. 04487_ Critical hit (Burn: +50). 04488_ 2Y-JKV(j) Ovr. Titanium Leg severed. 04491_ Acquired 10 matter. 04498_ 2Y-JKV(j) Ovr. Titanium Leg severed. 04500_ Lgt. Deuterium Engine melted. 04500_ 2Y-JKV(j) destroyed. 04505_ Dropped Ovr. Titanium Leg. 04509_ Lgt. Angular Momentum Engine destroyed. 04511_ Acquired 5 matter. 04513_ Critical hit (Burn: +50). 04517_ Y3-HIB(j) heat spikes uncontrollably. 04518_ Y3-HIB(j) heat damages Ovr. Titanium Leg. Map ----- +----------------------------------------------------+ | ????????? !*[#????????????????? | | ?????????? %!% #????????????????? | | ?????????? !![##???????????????? | | ? ?????????? ????????????????? | | ??"""""""""""??????????"" * "#????????????????? | | ???"""""""""???????????"""=%! "#????????????????? | | ###### ######?????????#""%! "#????????????????? | | # ##????????#""!! "##############???? | | # X"#????????#"" "## """"""""#???? | | # "" "" ##????????#"" *"## " " " "#???? | | # "" "" X"#????#####"" &%"## [ ""#???? | | # " " #######"# #"" = ## =|% &"#???? | | "" ! &"#???? | | "" = = ! "## "#???? | | # " " ######### #"[[*= "## " " " "#???? | | # "" "" ""#??????###""%!= "## """"""""#???? | | # "" "" ##??????# #""!== "##############???? | | # X"#???????#;"" ! "## #?????????? | | # ##???????## " "## ! #?????????? | | ###### ################" *"## ####?????????? | | """""""""""""""""""""""""" %"## !#?????????? | | """"""""""""""""""""""""" ! ![#?????????? | | "## *#?????????? | | "## ####?????????? | | = ! "## !#?????????? | | %! *%! @ =!## #?????????? | | ! j |%= !%[ !%E#######?????????? | | """""""""" " " """""""=""" " =##???????????????? | | ########## ########### #####; ;#???????????????? | | #??# #?# ##! ;##??????????????? | | # #??## ##?# ""##%[ ; #??????????????? | | # #??#"! !"#?#" "##*%!###??????????????? | | # #??#"! !"#?#" """"" "##*!=#????????????????? | | ## #??#"! "#?#" "???" "##!%=###????###???????? | | #??#"! !"#?#" "???" "##%!%""#####""###?????? | | # #??#" [[ "#?#" "???" "##=! %= #?????? | | # #??####X ##?#" "???" "##!!!*=! ##?????? | | # #?????#" "#?#" """"" "##=![%=[ #?????? | | # #?????" !"#?#" "##=!!!!/ #?????? | | ####?????#######?#"""""""""##!=[%=!= #?????? | | ?????????????????############!!%=###########?????? | | #############################%[!!####????????????? | | """##"""##"""##"""##"""##"|"#%[!""""#????????????? | | ""## ""##" "##"""##"" ##" #!!%"" "#????????????? | | =[[ "#????????????? | | % " "#????????????? | | = """"#????????????? | | """##"""##"" ##" "##!! ##""|## ######????????????? | | """##"""##"""##"""##"""##"""####?????????????????? | | #############################????????????????????? | +----------------------------------------------------+ Best States ------------- Heat Dissipation 39 Energy Generation 18 Energy Capacity 250 Matter Stores 300 Matter Capacity 300 Sight Range 16 Terrain Scan Density 10 Armor Coverage 250 Melee Speed Boost 20 Evasion (%) 55 Item Schematics ----------------- None Robot Schematics ------------------ None Fabricated ------------ Nothing Repaired ---------- Imp. Aluminum Leg | 60% | -10/Materials Autogun | 42% | -10/Materials Studied --------- None Alien Tech Used ----------------- None Achievements -------------- Civilization 2243 Do Not Disturb Link The Feds Strength In Numbers Challenges ------------ None Game ------ Seed SpliceEtherialSystem Manual? 0 Play Time 01:01:38 Cumulative 9.5 hours Start 2026.01.03 @ 00:58:09 End 2026.01.03 @ 03:01:29 Sessions 1 Manual Loads 0 Difficulty Rogue Special Mode None Game No. 10 Rogue 10 Adventurer 0 Explorer 0 Win Type - Total 0 Types 0/0/0/0/0/0/0/0/0/0 Lore% 15 Gallery% 10 Achievement% 12 Wizard Run 0 Options --------- Layout 1 ASCII 0 Keyboard 0 Movement Arrows Keybinds 0 Fullscreen 2 Font 24/Crisp Map View 50x35 Zoom Use 0% Tactical HUD 1 Map Filters NONE Filters NONE Steam 1 RUN: bd1425a9-5ab8-4d01-a2f7-52a15973bcf8